[Event "SVK ECo-C Extraliga 2021-22"]
[Site "Slovakia"]
[Date "2022.05.08"]
[Round "8.3"]
[White "Chlpik, Martin"]
[Black "Malinovsky, Karel"]
[Result "0-1"]
[ECO "D31"]
[WhiteElo "2225"]
[BlackElo "2473"]
[Annotator "TA"]
[PlyCount "159"]
[EventDate "2021.10.21"]
[EventType "team-tourn"]
[EventCountry "SVK"]
[SourceTitle "playchess.com"]
[Source "ChessBase"]
[SourceQuality "1"]
[TimeControl "40/5400+30:1800+30"]

{[%evp 9,159,22,32,3,18,10,16,0,62,0,0,0,0,-11,-24,-228,-232,-241,-234,-237,-229,-549,-470,-450,-468,-554,-565,-590,-583,-533,-426,-420,-391,-388,-360,-366,-287,-285,-264,-247,-245,-319,-264,-250,-205,-245,-176,-175,-171,-191,-125,-127,-76,-154,-105,-91,-76,-214,-151,-139,-144,-133,-144,-135,-139,-142,-134,-195,-188,-183,-150,-152,-143,-155,-132,-132,-117,-139,-128,-126,-127,-233,-236,-254,-254,-375,-380,-368,-350,-408,-405,-372,-351,-401,-392,-591,-593,-589,-583,-579,-568,-557,-521,-636,-637,-618,-627,-614,-609,-625,-570,-583,-572,-1057,-1019,-1087,-1014,-929,-909,-866,-724,-718,-718,-715,-706,-1090,-1112,-947,-915,-875,-844,-2096,-2123,-29955,-9893,-12126,-3182,-29974,-29974,-29975,-29976,-29976,-29976,-29976,-29977,-29978,-29979,-29979,-29980,-29982,-29983,-29985]} 1. d4 {[%emt 0:02:32]} d5 {[%emt 0:00:08]} 2. c4 {[%emt 0:00:07]} e6 {[%emt 0:00:12]} 3. Nc3 {[%emt 0:00:07]} Be7 {[%emt 0:00:10]} 4. cxd5 {[%emt 0:00:05]} exd5 {[%emt 0:00:09]} 5. Bf4 {[%emt 0:01:14]} Nf6 {[%emt 0:01:00]} 6. Qc2 {[%emt 0:06:09] D35: Queen's Gambit Declined: Exchange Variation.} c5 {[%emt 0:06:02]} 7. dxc5 {[%emt 0:00:41]} d4 {[%emt 0:01:09]} 8. O-O-O $1 {[%emt 0:00:07] [#] The position is equal.} Nc6 $146 {[%emt 0:16:42]} (8... O-O $11) ({Predecessor:} 8... Qa5 9. Qa4+ Qxa4 10. Nxa4 Ne4 11. Bg3 Nc6 12. Nf3 Nxc5 13. Nxc5 Bxc5 14. Ne5 Nxe5 15. Bxe5 {0-1 (40) Ilincic,Z (2565)-Vukovic,Z (2470) Yugoslavia 1995}) 9. Nf3 {[%emt 0:15:05]} (9. e3 $1 $14) 9... O-O $1 $11 {[%emt 0:03:37]} 10. e3 {[%emt 0:09:24][%cal Re3d4]} Bxc5 {[%emt 0:03:01]} 11. Nb5 {[%emt 0:03:51]} Bb6 {[%emt 0:10:37]} 12. Ng5 {[%emt 0:15:02]} (12. Bc4 $11 {and White has nothing to worry.}) 12... h6 $19 {[%emt 0:24:50]} 13. Nxf7 {[%emt 0:21:37]} Rxf7 {[%emt 0:01:03]} (13... Kxf7 14. Bc4+ Nd5 15. Nd6+ Kg8 16. Bxd5+ Kh8 17. Qe4 $16 (17. Nf7+ Rxf7 18. Bxf7 Qf8 $16)) 14. Bc4 {[%emt 0:01:12] [#]} Nd5 $1 {[%emt 0:08:47]} 15. Bd6 $2 {[%emt 0:00:20]} (15. Qe4 Nce7 16. Nd6) 15... Be6 {[%emt 0:05:35]} 16. Qe4 {[%emt 0:02:15] [#]} Qc8 {[%emt 0:02:21]} 17. Ba3 {[%emt 0:04:07]} (17. Nc3 Nxc3) 17... Nd8 {[%emt 0:03:33]} 18. Nd6 {[%emt 0:00:31]} Qc6 {[%emt 0:00:08]} 19. Qc2 {[%emt 0:07:04]} Rd7 {[%emt 0:02:27]} 20. e4 {[%emt 0:02:05]} Ne7 {[%emt 0:02:43]} (20... Rxd6 $2 21. Bxd6 Rc8 22. exd5 Qxc4 23. Qxc4 Rxc4+ 24. Kd2 Bxd5 25. Rc1 $19) 21. Bb5 {[%emt 0:03:07]} Qxc2+ {[%emt 0:00:16]} ({Don't blunder} 21... Rxd6 $2 22. Bxc6 Rxc6 23. Bxe7 $19) 22. Kxc2 {[%emt 0:00:01]} Rc7+ {[%emt 0:00:11]} 23. Kb1 {[%emt 0:00:11]} Nec6 {[%emt 0:03:10]} 24. f4 {[%emt 0:00:28]} a6 {[%emt 0:01:40]} 25. Ba4 {[%emt 0:02:26]} Nf7 {[%emt 0:01:13]} 26. Nxb7 {[%emt 0:00:25]} Ncd8 {[%emt 0:00:17]} 27. Nxd8 Nxd8 {[%emt 0:00:50]} 28. Bd6 {[%emt 0:01:00]} Rc4 {[%emt 0:01:11]} 29. b3 {[%emt 0:00:44]} Rxa4 {[%emt 0:00:19]} 30. bxa4 $17 {[%emt 0:00:06][%cal Oa4a5]} Nf7 {[%emt 0:00:06]} ({Black should play} 30... Rc8 31. a5 Bxa5 32. Rxd4 (32. f5 $2 Bc4 $17) 32... Nf7) 31. Ba3 {[%emt 0:00:32]} (31. a5 $142 Bxa5 32. Rxd4) 31... Bc4 {[%emt 0:00:41]} (31... Rd8 $142 {White must now prevent ...d3.} 32. Rd3 Bc4) 32. a5 {[%emt 0:01:13] [#]} Ba7 {[%emt 0:00:41] A strong pair of Bishops.} ({Don't play} 32... Bxa5 $6 33. Rxd4 Bb5 34. Rc1 $11) 33. Bb2 {[%emt 0:00:05]} (33. Kc2 $17) 33... Be2 {[%emt 0:01:23]} ({Weaker is} 33... Rb8 34. Rc1 Nd6 35. Ka1 $17) 34. Rd2 {[%emt 0:03:00]} d3 {[%emt 0:00:23]} 35. Rxe2 {[%emt 0:00:06]} dxe2 {[%emt 0:00:05]} 36. Re1 {[%emt 0:00:03]} Nd6 {[%emt 0:00:31]} 37. Rxe2 {[%emt 0:00:07]} Nc4 {[%emt 0:01:05]} 38. Bc3 {[%emt 0:01:01]} (38. Kc2 $17 {was called for.}) 38... Rb8+ $19 {[%emt 0:00:30]} 39. Kc2 {[%emt 0:00:53]} Na3+ {[%emt 0:00:19]} 40. Kd2 {[%emt 0:00:23]} Rc8 {[%emt 0:00:47] And now ...Nb1+ would win. Black is more active.} 41. Re1 {[%emt 0:03:50] Against Nb1+} Nb5 {[%emt 0:03:23]} 42. Bb4 {[%emt 0:09:20]} Nd4 {[%emt 0:03:01]} 43. e5 {[%emt 0:01:31]} Kf7 {[%emt 0:02:47]} 44. Kd3 {[%emt 0:05:53]} Ke6 {[%emt 0:01:21]} 45. Bd6 {[%emt 0:04:46]} (45. Bc3 $17 {is a better defense.} Kd5 46. Bxd4 Bxd4 47. e6) 45... Nf5 {[%emt 0:03:05]} 46. Bb4 {[%emt 0:01:46]} Rd8+ {[%emt 0:00:47]} 47. Kc3 {[%emt 0:01:04]} (47. Bd6 $142) 47... Be3 {[%emt 0:03:48] Hoping for ...Bd2+.} 48. Rf1 {[%emt 0:04:33]} Rd4 {[%emt 0:01:04] Strongly threatening ...Bd2+.} 49. Bf8 {[%emt 0:01:02]} Rxf4 {[%emt 0:01:28]} 50. Rb1 {[%emt 0:00:06]} Ra4 {[%emt 0:03:18]} 51. Kd3 {[%emt 0:02:10]} Rd4+ {[%emt 0:01:57]} 52. Ke2 {[%emt 0:00:09]} (52. Kc3 {is the only way for White.} Bd2+ 53. Kb3) 52... Rd2+ {[%emt 0:00:59]} 53. Kf3 {[%emt 0:00:04]} Rf2+ {[%emt 0:00:17]} 54. Ke4 {[%emt 0:00:05]} Rxg2 {[%emt 0:00:52]} 55. Rb8 {[%emt 0:01:12]} Rg4+ {[%emt 0:01:09]} 56. Kf3 {[%emt 0:00:48]} Rf4+ {[%emt 0:00:08]} 57. Ke2 {[%emt 0:00:06]} Rf2+ {[%emt 0:01:18]} 58. Kd3 {[%emt 0:00:02]} Rxa2 {[%emt 0:00:18]} 59. Bb4 {[%emt 0:01:03]} Rb2 {[%emt 0:02:13]} 60. Re8+ {[%emt 0:00:05]} Kd7 {[%emt 0:00:53]} 61. Rf8 {[%emt 0:01:21]} Rxb4 {[%emt 0:01:06]} 62. Rxf5 {[%emt 0:00:02][%mdl 4096] Endgame KRB-KR} Rf4 {[%emt 0:00:41]} 63. Rh5 {[%emt 0:00:34]} Ba7 {[%emt 0:00:13]} 64. Rh3 {[%emt 0:00:36]} Ra4 {[%emt 0:00:12] ( -> ...Ra3+)} 65. Kc2 {[%emt 0:00:33]} Rxa5 {[%emt 0:00:53]} 66. Rg3 {[%emt 0:00:04]} g5 {[%emt 0:00:17]} 67. Rf3 {[%emt 0:00:04]} Rxe5 {[%emt 0:00:35]} 68. Rf7+ {[%emt 0:00:11]} Re7 {[%emt 0:00:10]} 69. Rf6 {[%emt 0:00:03]} Re2+ {[%emt 0:00:35]} 70. Kd3 {[%emt 0:00:08]} Rxh2 {[%emt 0:00:17]} 71. Rf7+ {[%emt 0:00:15]} Ke6 {[%emt 0:00:06]} 72. Rxa7 {[%emt 0:00:04] KR-KR} Kf5 {[%emt 0:00:16]} 73. Rxa6 {[%emt 0:00:06]} Kg4 {[%emt 0:00:20] Black mates.} 74. Ke3 {[%emt 0:00:33]} h5 {[%emt 0:00:32][%cal Bh6h5,Bh5h4][%mdl 32]} 75. Ra1 {[%emt 0:00:14]} Rg2 {[%emt 0:00:28]} 76. Ra4+ {[%emt 0:00:11]} Kh3 {[%emt 0:00:35]} 77. Ra5 {[%emt 0:01:32]} h4 {[%emt 0:00:38]} 78. Ra8 {[%emt 0:02:23]} Kg3 {[%emt 0:00:35]} 79. Rg8 {[%emt 0:00:06]} g4 {[%emt 0:00:26]} 80. Kd4 {Weighted Error Value: White=0.39/Black=0.18 (very precise)} 0-1

[Event "SVK ECo-C Extraliga 2021-22"]
[Site "Slovakia"]
[Date "2022.05.09"]
[Round "8.4"]
[White "Nagy, Gabor"]
[Black "Urhegyi, Marton"]
[Result "1-0"]
[ECO "B38"]
[WhiteElo "2503"]
[BlackElo "2232"]
[Annotator "TA"]
[PlyCount "83"]
[EventDate "2021.10.21"]
[EventType "team-tourn"]
[EventCountry "SVK"]
[SourceTitle "playchess.com"]
[Source "ChessBase"]
[SourceQuality "1"]
[TimeControl "40/5400+30:1800+30"]

{[%evp 21,83,28,28,32,35,39,37,30,58,34,40,42,57,74,57,56,56,72,66,64,58,67,115,117,124,112,109,101,121,92,67,58,161,188,168,133,358,193,567,567,655,620,698,137,128,121,201,188,221,202,269,252,512,232,505,744,655,499,1158,1060,29995,29996,29996,29979]} 1. c4 {[%emt 0:00:21]} c5 {[%emt 0:00:09]} 2. Nf3 {[%emt 0:00:16]} Nc6 {[%emt 0:00:14]} 3. d4 {[%emt 0:00:19]} cxd4 {[%emt 0:00:10]} 4. Nxd4 {[%emt 0:00:08]} Nf6 {[%emt 0:00:40]} 5. Nc3 {[%emt 0:00:40]} g6 {[%emt 0:00:50]} 6. e4 {[%emt 0:00:23]} Bg7 {[%emt 0:03:37]} 7. Be3 {[%emt 0:00:26]} d6 {[%emt 0:01:06]} 8. Be2 {[%emt 0:00:24]} O-O {[%emt 0:00:24]} 9. O-O {[%emt 0:00:57]} Bd7 {[%emt 0:00:22]} 10. h3 {[%emt 0:00:38]} Nxd4 {[%emt 0:00:54]} 11. Bxd4 {[%emt 0:00:16]} Bc6 {[%emt 0:00:12]} 12. Qc2 {[%emt 0:00:27] B38: Sicilian: Maroczy Bind with 5...Bg7 and 7...0-0.} a5 {[%emt 0:00:48]} 13. Rad1 {[%emt 0:01:05]} Nd7 {[%emt 0:01:19]} 14. Bxg7 {[%emt 0:00:31] White is slightly better.} Kxg7 {[%emt 0:00:05]} 15. Bg4 {[%emt 0:00:13]} Ne5 {[%emt 0:12:42]} 16. c5 {[%emt 0:00:16][%cal Bc4c5,Bc5d6,Bd6e7][%mdl 32]} Nxg4 {[%emt 0:05:36]} 17. hxg4 {[%emt 0:01:31]} Qc8 {[%emt 0:11:56]} 18. cxd6 {[%emt 0:00:28]} Qxg4 {[%emt 0:04:17]} 19. dxe7 {[%emt 0:00:14]} Rfe8 {[%emt 0:02:15]} 20. Nd5 $1 {[%emt 0:00:13]} Bxd5 {[%emt 0:01:02]} 21. Qc3+ {[%emt 0:00:13] [#]} f6 $146 {[%emt 0:08:50]} (21... Kg8 $1 $14 {should be considered.} 22. exd5 Rxe7) ({Predecessor:} 21... Kg8 22. exd5 Rxe7 23. Rd4 Qc8 24. Qd2 Qf5 25. d6 Rd7 26. Rd5 Qf6 27. Rd1 a4 {1-0 (44) Firouzja,A (2728)-Vachier Lagrave,M (2778) Chess.com INT 2020}) 22. exd5 $16 {[%emt 0:01:20][%cal Be4d5,Bd5d6][%mdl 32]} Rxe7 {[%emt 0:01:00]} 23. d6 {[%emt 0:00:13]} Rd7 {[%emt 0:03:23]} 24. Rfe1 {[%emt 0:05:51]} Qa4 {[%emt 0:17:17][%cal Oa8e8]} 25. Rd4 {[%emt 0:05:15] White is much more active.} Qc6 {[%emt 0:05:13]} 26. Qd2 {[%emt 0:02:50]} (26. Qh3 {seems wilder.} Rad8 27. Re6 Qc1+ 28. Kh2) 26... b6 {[%emt 0:08:06]} (26... Rc8 $14) 27. Rc1 $18 {[%emt 0:03:07]} Qb5 {[%emt 0:01:23]} 28. a4 $36 {[%emt 0:01:50][%mdl 2048] White has strong initiative.} ({Don't play} 28. Rh4 $6 Rad8 $14) 28... Qb3 {[%emt 0:03:31]} (28... Qf5 $16 {might work better.} 29. Rc7 (29. Rh4 Qg5 $14) 29... Rad8) 29. Rc3 {[%emt 0:03:09]} (29. Rc7 $142 Qf7 30. Qc3 Rxc7 31. Qxc7 (31. dxc7 Rc8 $16) 31... Qxc7 32. dxc7) 29... Qe6 {[%emt 0:00:58]} (29... Qa2 30. Re4 Rad8) 30. Re3 $1 {[%emt 0:00:30]} Qf5 {[%emt 0:04:23]} 31. Rde4 {[%emt 0:01:19] And now Re7+ would win.} Rf8 {[%emt 0:00:36]} 32. b3 $2 {[%emt 0:02:48]} (32. Re7+ $18 Rf7 33. Qe2 Qb1+ 34. Kh2) 32... Qc5 $16 {[%emt 0:00:58]} 33. Re6 {[%emt 0:02:41]} Rff7 {[%emt 0:01:13] [#]} (33... Rfd8 $16) 34. Rc3 $1 $18 {[%emt 0:01:58]} ({Don't take} 34. Rh3 $6 Qg5 35. Rhe3 Qf4 $16) 34... Qb4 {[%emt 0:00:44] [#]} 35. Qd3 $1 {[%emt 0:01:01] Against b5. Strongly threatening Rc4.} Qg4 {[%emt 0:00:33]} 36. Re8 {[%emt 0:02:08][%cal Be6e8,Be8e4,Be4e7][%mdl 32]} Qb4 $2 {[%emt 0:01:13]} (36... Qf4) 37. Rc6 {[%emt 0:01:05]} (37. Rcc8 $142 f5 38. Rc6) 37... Rf8 {[%emt 0:00:26] Prevents Rg8+.} (37... Qg4 38. g3 (38. Rxb6 Rf8 $18) 38... f5 39. Rxb6 f4) 38. Re4 {[%emt 0:02:52]} Qa3 {[%emt 0:00:26]} 39. Kh2 {[%emt 0:01:06]} Rfd8 {[%emt 0:00:35]} (39... Rff7 $142 40. Rd4 Qa2) 40. Qe3 {[%emt 0:00:54] White threatens Re7+ and mate.} Rxd6 {[%emt 0:00:32]} 41. Re7+ {[%emt 0:30:07][%mdl 64] Skewer, Deflection} Kf8 {[%emt 0:01:43]} 42. Rcc7 {[%emt 0:00:00] Weighted Error Value: White=0.44/Black=0.71} 1-0

[Event "SVK ECo-C Extraliga 2021-22"]
[Site "Slovakia"]
[Date "2022.05.08"]
[Round "8.4"]
[White "Piesik, Piotr"]
[Black "Mikrut, Dariusz"]
[Result "1/2-1/2"]
[ECO "E20"]
[WhiteElo "2418"]
[BlackElo "2361"]
[Annotator "TA"]
[PlyCount "45"]
[EventDate "2021.10.21"]
[EventType "team-tourn"]
[EventCountry "SVK"]
[SourceTitle "playchess.com"]
[Source "ChessBase"]
[SourceQuality "1"]
[TimeControl "40/5400+30:1800+30"]

{[%evp 25,45,17,25,15,45,43,52,41,51,19,20,25,27,28,33,16,50,51,43,52,54,21]} 1. d4 {[%emt 0:00:04]} Nf6 {[%emt 0:00:19]} 2. c4 {[%emt 0:00:05]} e6 {[%emt 0:00:06]} 3. Nc3 {[%emt 0:00:05]} Bb4 {[%emt 0:00:06]} 4. f3 {[%emt 0:00:03]} O-O {[%emt 0:02:19]} 5. a3 {[%emt 0:01:06]} Bxc3+ {[%emt 0:01:00]} 6. bxc3 {[%emt 0:00:04]} d5 {[%emt 0:00:04]} 7. cxd5 {[%emt 0:07:39]} exd5 {[%emt 0:00:06]} 8. e3 {[%emt 0:00:07]} c5 {[%emt 0:00:05]} 9. Bd3 {[%emt 0:00:38]} b6 {[%emt 0:00:06]} 10. Ne2 {[%emt 0:00:04][%cal Bg1e2,Be2g3,Bg3h1,Bh1f2][%mdl 32]} Ba6 {[%emt 0:00:08]} 11. O-O {[%emt 0:00:07]} Bxd3 {[%emt 0:00:15]} 12. Qxd3 {[%emt 0:00:05]} Nbd7 {[%emt 0:00:05]} 13. Ng3 {[%emt 0:05:05]} Re8 {[%emt 0:06:50]} 14. Bb2 {[%emt 0:04:15] E49: Nimzo-Indian: Rubinstein: 5 Bd3 d5 6 a3 Bxc3+ 7 bxc3.} h5 {[%emt 0:04:20][%cal Ob6b5]} 15. Rae1 {[%emt 0:07:40] [#]} cxd4 $146 {[%emt 0:11:25]} ({Predecessor:} 15... g6 16. e4 cxd4 17. cxd4 h4 18. Nh1 Nh5 19. g3 hxg3 20. hxg3 Rc8 21. e5 Nf8 {1-0 (37) Milikow,Y (2299)-Savic,M (2450) Banja Vrujci 2021}) 16. cxd4 {[%emt 0:00:06]} g6 {[%emt 0:04:58]} 17. Nh1 {[%emt 0:08:56]} Rc8 {[%emt 0:02:32]} 18. Nf2 {[%emt 0:03:11]} Qc7 {[%emt 0:11:06]} 19. Re2 {[%emt 0:09:49]} Qc4 {[%emt 0:03:19]} 20. Qd1 {[%emt 0:00:22]} b5 {[%emt 0:02:42]} 21. e4 {[%emt 0:06:57][%cal Be3e4,Be4e5][%mdl 32] White is slightly better.} Nb6 {[%emt 0:04:46]} 22. e5 {[%emt 0:07:35]} Na4 {[%emt 0:06:51]} 23. f4 {[%emt 0:18:07] Weighted Error Value: White=0.06 (flawless) /Black=0.06 (flawless)} 1/2-1/2

[Event "SVK ECo-C Extraliga 2021-22"]
[Site "Slovakia"]
[Date "2022.05.08"]
[Round "8.4"]
[White "Bures, Jaroslav"]
[Black "Frindt, Kornel"]
[Result "1-0"]
[ECO "B32"]
[WhiteElo "2411"]
[BlackElo "2165"]
[Annotator "TA"]
[PlyCount "69"]
[EventDate "2021.10.21"]
[EventType "team-tourn"]
[EventCountry "SVK"]
[SourceTitle "playchess.com"]
[Source "ChessBase"]
[SourceQuality "1"]
[TimeControl "40/5400+30:1800+30"]

{[%evp 17,69,49,50,46,45,41,52,24,40,32,110,123,124,79,89,83,97,95,95,98,89,86,94,91,91,72,119,56,145,139,120,104,121,114,108,49,56,50,53,50,56,54,51,51,66,57,65,56,59,19,21,21,602,600]} 1. e4 {[%emt 0:00:04]} c5 {[%emt 0:00:35]} 2. Nf3 {[%emt 0:00:08][%cal Bg1f3,Bf3d4,Bd4b5,Bb5a3,Ba3c2][%mdl 32]} Nc6 {[%emt 0:00:28]} 3. d4 {[%emt 0:00:07]} cxd4 {[%emt 0:00:20]} 4. Nxd4 {[%emt 0:00:09]} e5 {[%emt 0:00:51]} 5. Nb5 {[%emt 0:00:06]} d6 {[%emt 0:00:38]} 6. N1c3 {[%emt 0:00:05]} a6 {[%emt 0:00:42]} 7. Na3 {[%emt 0:00:06]} Be7 {[%emt 0:00:51]} 8. Be3 {[%emt 0:04:30]} b5 {[%emt 0:06:06][%cal Bb7b5,Bb5b4][%mdl 32]} 9. Nd5 {[%emt 0:00:06]} Rb8 $1 {[%emt 0:00:47]} 10. c4 {[%emt 0:03:13][%cal Rc4b5,Bc2c4,Bc4d5][%mdl 32] B32: Sicilian: Löwenthal and Kalashnikov Variations.} b4 {[%emt 0:04:39]} 11. Nc2 {[%emt 0:00:02]} Nf6 {[%emt 0:05:55]} 12. Qd3 {[%emt 0:04:10] White is slightly better.} O-O {[%emt 0:18:34]} 13. Be2 {[%emt 0:00:03]} Nxd5 {[%emt 0:08:14]} (13... Nd7 $14) 14. cxd5 $16 {[%emt 0:04:16]} ({Much less strong is} 14. exd5 Na5 $14) 14... Na5 {[%emt 0:00:46]} 15. O-O {[%emt 0:01:51]} f5 {[%emt 0:02:23] [#]} 16. b3 $146 {[%emt 0:03:36] White is more active.} ({Predecessor:} 16. f3 b3 17. axb3 Rxb3 18. Qd2 Rxe3 19. Qxe3 Bg5 20. Qc3 Qb6+ 21. Kh1 Nb3 22. Rad1 {1-0 (41) Aflalo,S (2135)-Congiu,M (2248) Chartres 2017}) 16... Bg5 {[%emt 0:03:32]} 17. exf5 {[%emt 0:04:36]} Bxf5 {[%emt 0:04:09]} 18. Qd2 {[%emt 0:00:06]} Bxe3 {[%emt 0:01:57]} 19. Nxe3 {[%emt 0:00:03]} Bc8 {[%emt 0:01:24]} 20. Rac1 {[%emt 0:00:02]} Qb6 {[%emt 0:05:46]} 21. Bd3 {[%emt 0:01:53]} Bd7 {[%emt 0:01:08] [#]} (21... Rf7 $142) 22. Rc2 {[%emt 0:02:58]} (22. Qc2 $1 $16) 22... Rbc8 {[%emt 0:02:19]} (22... Rf7 $14) 23. Rfc1 {[%emt 0:01:38] Hoping for Rxc8.} Rxc2 {[%emt 0:02:38]} 24. Nxc2 {[%emt 0:02:18]} Rc8 {[%emt 0:04:24]} 25. Re1 {[%emt 0:00:02]} Nb7 26. Qxb4 {[%emt 0:12:18]} (26. Nxb4 $16 Nc5 27. Bc4) 26... Qxb4 $14 {[%emt 0:06:00]} 27. Nxb4 {[%emt 0:00:02]} a5 {[%emt 0:00:32]} 28. Nc2 {[%emt 0:00:02]} Rc3 {[%emt 0:02:20]} 29. Re3 {[%emt 0:00:02][%cal Od3h7] Strongly threatening Bxh7+!} g6 {[%emt 0:01:33]} 30. Be4 {[%emt 0:00:01]} Rc7 {[%emt 0:00:51]} 31. f3 {[%emt 0:00:22]} Kf7 {[%emt 0:01:16]} 32. g4 {[%emt 0:03:32]} Ke7 {[%emt 0:01:32]} 33. h4 {[%emt 0:00:52]} Nc5 {[%emt 0:03:01]} 34. Rc3 {[%emt 0:01:50]} Rb7 $2 {[%emt 0:01:31][%mdl 8192] [#]} (34... Rc8 $11) 35. Rxc5 $1 {[%mdl 512] Weighted Error Value: White=0.13 (very precise) /Black=0.38} 1-0

[Event "SVK ECo-C Extraliga 2021-22"]
[Site "Slovakia"]
[Date "2022.05.09"]
[Round "8.4"]
[White "Borhy Marcell"]
[Black "Sepesi, Samuel"]
[Result "1-0"]
[ECO "E63"]
[WhiteElo "2396"]
[BlackElo "2159"]
[Annotator "TA"]
[PlyCount "73"]
[EventDate "2021.10.21"]
[EventType "team-tourn"]
[EventCountry "SVK"]
[SourceTitle "playchess.com"]
[Source "ChessBase"]
[SourceQuality "1"]
[TimeControl "40/5400+30:1800+30"]

{[%evp 16,73,51,49,46,40,62,58,46,54,58,32,27,31,31,31,31,31,37,37,31,26,29,35,50,35,31,-1,91,91,82,86,80,76,91,91,136,143,184,186,170,87,156,158,312,309,311,300,296,304,681,670,970,941,887,852,1152,1151,1094,1035]} 1. Nf3 {[%emt 0:00:08]} Nf6 {[%emt 0:00:20]} 2. g3 {[%emt 0:00:22]} g6 {[%emt 0:00:30]} 3. c4 {[%emt 0:00:10]} Bg7 {[%emt 0:00:09]} 4. d4 {[%emt 0:00:09]} O-O {[%emt 0:00:12]} 5. Bg2 {[%emt 0:00:05]} d6 {[%emt 0:00:18]} 6. O-O {[%emt 0:00:08]} Nc6 {[%emt 0:00:15]} 7. Nc3 {[%emt 0:00:07]} a6 {[%emt 0:00:15]} 8. b3 $1 {[%emt 0:00:07][%mdl 4] is recently more successful than 8.h3.} Rb8 {[%emt 0:00:23]} 9. d5 {[%emt 0:00:09]} Na5 {[%emt 0:00:33] E63: King's Indian: Fianchetto: Panno Variation with 7...a6.} 10. Bg5 {[%emt 0:00:06]} c5 {[%emt 0:05:09]} 11. dxc6 $1 {[%emt 0:00:08]} Nxc6 {[%emt 0:00:26] White is slightly better.} 12. Rc1 {[%emt 0:00:10]} Be6 {[%emt 0:09:01]} 13. Nd5 {[%emt 0:14:04]} Bxd5 {[%emt 0:07:18]} 14. cxd5 {[%emt 0:00:06]} Nb4 {[%emt 0:24:08][%csl LRa2,LRd5]} 15. Bxf6 {[%emt 0:03:33]} Bxf6 {[%emt 0:00:11]} 16. a3 {[%emt 0:09:45]} Na2 {[%emt 0:00:04]} 17. Rc2 {[%emt 0:00:04]} Nc3 {[%emt 0:00:06]} 18. Qd3 {[%emt 0:00:06]} Qa5 {[%emt 0:05:45][%csl LRa3,LRd5]} 19. Nd2 {[%emt 0:04:19] [#]} Rfc8 $146 {[%emt 0:10:34][%cal Oc3e2] Hoping for ...Nxe2+!} ({Predecessor:} 19... Rbc8 20. Rfc1 Qxa3 21. Bf1 Rc5 22. Rxc3 Bxc3 23. Rxc3 Rfc8 24. Rc4 Rxc4 25. Nxc4 Qb4 {½-½ (46) Borhy,M (2371)-Mendonca,L (2499) Budapest 2020}) 20. Rfc1 {[%emt 0:09:57] And now Ne4 would win.} Rc7 {[%emt 0:23:12]} 21. Ne4 {[%emt 0:24:06] [#]} Nxe4 {[%emt 0:00:32]} 22. Rxc7 $16 {[%emt 0:00:05]} Nc5 {[%emt 0:00:18] [#]} 23. R1xc5 {[%emt 0:00:19]} dxc5 {[%emt 0:00:14]} 24. d6 {[%emt 0:00:09]} exd6 {[%emt 0:09:21]} 25. Rd7 {[%emt 0:05:44] White is more active.} Rd8 {[%emt 0:03:08]} 26. Rxb7 {[%emt 0:00:41]} ({Reject} 26. Rxd8+ $6 Qxd8 27. Bxb7 a5 $14) 26... Qe1+ {[%emt 0:00:35]} 27. Bf1 {[%emt 0:00:01]} d5 {[%emt 0:00:30]} 28. Rc7 $40 {[%emt 0:06:36][%mdl 128] Black is in trouble.} ({Better is} 28. Qxa6 $18 Qc3 29. Qb6) 28... Qc1 {[%emt 0:00:30]} (28... Qa5 $142 29. Rc6 Kg7) 29. Qxa6 {[%emt 0:02:03]} Bb2 {[%emt 0:00:31]} (29... Be5 $16 30. Ra7 Qd1) 30. Qb7 $18 {[%emt 0:01:11]} Rf8 {[%emt 0:00:30]} 31. a4 {[%emt 0:06:38]} ({Don't do} 31. Qxd5 Bxa3 32. Kg2 Qb2 $18) 31... d4 {[%emt 0:00:24]} 32. Qd5 {[%emt 0:00:14]} Ba3 $2 {[%emt 0:00:20]} (32... Bc3 33. Rxc5 Qe1) 33. a5 {[%emt 0:00:19] White is clearly winning.} Bb4 {[%emt 0:00:44]} 34. a6 {[%emt 0:00:08]} Qa1 {[%emt 0:00:33]} 35. a7 {[%emt 0:00:06]} d3 {[%emt 0:00:28] [#]} 36. Rxf7 $1 {[%emt 0:02:29][%mdl 512]} Rxf7 {[%emt 0:00:32]} 37. a8=Q+ {[%emt 0:00:07] Weighted Error Value: White=0.07 (flawless) /Black=0.41} 1-0